bitfinex/quotes_ETHUSD_20260225
["timestamp","ask_amount","ask_price","bid_price","bid_amount"]
[1772030796899,6.03825617,1980.6,1979.4,2.56235216]
[1772030797096,6.03825617,1980.6,1979.6,2.56235216]
[1772030797473,3.76018003,1980.7,1979.6,2.56235216]
[1772030797677,3.76018003,1980.7,1979.8,2.56235216]
[1772030798174,3.76018003,1980.7,1979.6,2.56235216]
[1772030798375,3.76018003,1980.7,1979.6,3.8243709]
[1772030798808,3.76018003,1980.7,1979.8,2.56235216]
[1772030799371,3.76018003,1980.7,1979.6,3.8251709]
[1772030800472,3.76018003,1980.7,1979.8,2.56235216]
[1772030800903,2.498,1980.7,1980.0,2.56235216]
[1772030801078,9.79844936,1980.7,1979.6,3.8251709]
[1772030801401,2.498,1980.7,1980.0,8.47444644]
[1772030801600,1.26418697,1980.7,1980.0,5.91209428]
[1772030801842,0.002,1980.7,1980.0,2.56235216]
[1772030801970,1.26418592,1980.7,1980.0,2.56235216]
[1772030802166,0.002,1980.7,1980.0,8.47444644]
[1772030802384,0.002,1980.7,1980.1,1.26256249]
[1772030802585,0.002,1980.7,1980.0,7.17467163]
[1772030803010,0.002,1980.7,1980.2,2.56235216]
[1772030803193,1.26182272,1981.3,1980.4,8.47444644]
[1772030803497,1.26182272,1981.3,1980.5,5.91209428]
[1772030803715,1.26182272,1981.3,1980.2,4.668393]
[1772030803873,3.82417488,1981.3,1980.3,2.345]
[1772030804172,1.26182272,1981.3,1980.3,8.25709428]
[1772030804373,1.26182272,1981.3,1980.5,2.56235216]
[1772030804712,1.26154311,1981.7,1980.9,2.56235216]
[1772030805009,1.26154311,1981.7,1981.0,0.43964743]
[1772030805310,1.26154311,1981.7,1980.8,2.344]
[1772030805825,1.26154311,1981.7,1980.8,2.78364743]
[1772030806023,1.26154311,1981.7,1980.8,2.344]
[1772030806318,1.26154311,1981.7,1980.8,2.78364743]
[1772030806533,3.74946341,1981.9,1981.2,2.56235216]
[1772030806694,5.04521552,1982.1,1981.2,2.56235216]
[1772030807003,5.04521552,1982.1,1981.0,5.91209428]
[1772030807200,5.04391149,1982.6,1981.5,5.91209428]
[1772030807404,1.5124794,1983.5,1982.4,2.56235216]
[1772030807405,1.26039828,1983.5,1982.4,2.56235216]
[1772030807808,1.41743492,1983.6,1982.6,5.91209428]
[1772030808012,0.1570515,1983.6,1983.2,2.56235216]
[1772030808192,1.26001713,1984.1,1983.4,8.47444644]
[1772030808396,1.26001713,1984.1,1983.0,5.12470432]
[1772030808397,1.26008064,1984.0,1983.0,5.91209428]
[1772030808641,2.56235216,1983.6,1982.2,5.91209428]
[1772030808818,2.485,1983.5,1982.2,5.91209428]
[1772030809126,2.485,1983.5,1982.5,3.310322]
[1772030809356,2.485,1983.5,1982.5,5.91209428]
[1772030809530,1.26008064,1984.0,1982.6,22.951988]
[1772030809695,2.56235216,1983.8,1982.6,5.91209428]
[1772030810198,2.56235216,1983.6,1982.6,5.91209428]
[1772030810523,1.26020768,1983.8,1982.6,9.73457152]
[1772030810728,1.26020768,1983.8,1982.6,7.17221936]
[1772030810920,2.56235216,1983.7,1982.6,5.91129428]
[1772030811224,2.56235216,1983.7,1982.6,7.17226385]
[1772030811544,3.7440611,1984.1,1983.2,2.56235216]
[1772030811856,13.6399599,1984.4,1982.7,2.34]
[1772030811857,5.03667617,1985.6,1983.9,5.91209428]
[1772030812008,0.00799697,1986.9,1985.4,5.12470432]
[1772030812199,0.00799697,1986.9,1985.8,17.543002]
[1772030812399,3.34,1987.4,1985.8,6.1848167]
[1772030812626,6.937217,1987.2,1985.8,6.1848167]
[1772030812829,1.25798822,1987.3,1985.8,6.1848167]
[1772030813023,6.605795,1987.2,1985.8,6.1848167]
[1772030813242,1.25798822,1987.3,1985.0,2.346]
[1772030813243,6.03825617,1986.5,1985.0,5.91209428]
[1772030813446,6.03825617,1986.1,1984.2,2.53937906]
[1772030813645,6.195008,1984.8,1984.1,0.2631]
[1772030813812,6.195008,1984.5,1983.7,2.345]
[1772030814012,6.195008,1984.3,1983.2,7.908852]
[1772030814231,6.194208,1984.2,1983.2,5.4973]
[1772030814439,6.03825617,1985.5,1983.9,2.53937906]
[1772030814635,5.03582624,1985.8,1984.6,15.242434]
[1772030814920,11.07376605,1985.9,1984.6,15.242434]
[1772030815117,11.07376605,1985.9,1984.7,13.510983]
[1772030815347,6.03825617,1985.9,1984.7,14.77066306]
[1772030815516,6.03825617,1985.9,1984.8,16.187179]
[1772030815861,1.50989971,1986.9,1985.3,2.53937906]
[1772030815862,6.09143661,1986.4,1985.3,2.53937906]
[1772030816156,3.75387996,1987.5,1986.0,22.830452]
[1772030816361,3.75387996,1987.5,1985.4,2.43492]
[1772030816362,6.09143661,1987.0,1985.4,2.355]
[1772030816515,1.25824148,1986.9,1985.6,5.7040587]
[1772030816720,7.34967809,1986.9,1985.6,1.2590417]
[1772030816922,7.34967809,1986.9,1985.7,6.911846]
[1772030817124,1.25798822,1987.3,1985.8,22.830452]
[1772030817324,6.09143661,1987.9,1986.3,2.53937906]
[1772030817523,7.34905409,1987.9,1985.8,2.53937906]
[1772030817822,7.34905409,1987.9,1985.5,5.0363366]
[1772030817823,6.09143661,1987.0,1985.3,3.61076152]
[1772030818126,6.09143661,1987.5,1985.6,2.53937906]
[1772030818328,6.09143661,1987.5,1986.0,22.830452]
[1772030818543,7.34936153,1987.4,1986.0,1.25881168]
[1772030818741,7.34936153,1987.4,1985.8,3.61889894]
[1772030818926,7.34936153,1987.4,1985.9,12.746147]
[1772030819128,6.09143661,1987.0,1985.5,22.737488]
[1772030819332,2.501,1986.9,1985.4,8.544541]
[1772030819540,6.09143661,1986.8,1985.1,2.359]
[1772030819719,6.09143661,1986.5,1985.1,2.359]
[1772030819923,6.09063661,1986.5,1985.1,2.359]
[1772030820347,6.09063661,1986.5,1985.1,3.61836456]
[1772030820547,6.09143661,1986.2,1984.5,6.038203]
[1772030820749,6.09143661,1986.2,1984.0,3.61808064]
[1772030820750,6.09143661,1985.6,1984.0,3.61808064]
[1772030820935,6.09143661,1985.6,1984.1,5.33288]
[1772030821445,6.09143661,1985.8,1984.3,22.830452]
[1772030821630,6.09143661,1985.5,1984.1,3.912]
[1772030822155,2.65926585,1985.9,1984.3,9.23843]
[1772030822353,8.63081567,1985.6,1984.2,2.357]
[1772030822728,1.25912868,1985.5,1984.0,1.26004]
[1772030822934,3.75712868,1985.5,1984.1,22.830452]
[1772030823142,1.25910339,1985.6,1984.5,22.830452]
[1772030823453,3.91814965,1985.9,1984.6,2.359]
[1772030823629,3.91814965,1985.9,1984.7,2.35273]
[1772030823630,2.65926585,1985.9,1984.7,2.35273]
[1772030823836,1.25852478,1986.5,1985.0,2.53937906]
[1772030824032,1.25852478,1986.5,1985.1,9.993264]
[1772030824239,1.25852478,1986.5,1985.1,3.1861]
[1772030824626,6.09143661,1986.6,1985.3,22.830452]
[1772030824825,0.26308101,1987.4,1985.9,2.53937906]
[1772030825047,7.34938902,1987.4,1985.9,8.8513]
[1772030825248,6.09143661,1987.3,1986.1,17.073341]
[1772030825473,0.002,1987.5,1986.1,8.355753]
[1772030825633,1.26590897,1989.0,1987.2,2.53937906]
[1772030825837,6.09143661,1988.7,1986.8,4.309064]
[1772030826143,1.26585311,1989.0,1987.6,7.86222]
[1772030826530,6.09143661,1988.9,1987.0,4.401873]
[1772030826726,1.25703942,1988.8,1987.2,2.53937906]
[1772030826928,1.25703942,1988.8,1987.3,4.214223]
[1772030826929,8.63081567,1988.7,1987.3,4.214223]
[1772030827251,6.09143661,1987.6,1986.0,2.369]
[1772030827435,6.09143661,1987.0,1985.0,11.21947034]
[1772030827765,6.09143661,1987.0,1985.2,10.733013]
[1772030827962,6.09143661,1987.0,1985.3,2.53937906]
[1772030828168,6.09063661,1987.0,1985.7,9.027272]
[1772030828368,6.09063661,1987.0,1985.6,2.53937906]
[1772030828566,6.09143661,1987.6,1986.3,2.53937906]
[1772030828865,7.34891908,1988.1,1986.7,2.2915]
[1772030829072,7.34891908,1988.1,1986.3,2.53937906]
[1772030829073,7.34891908,1988.1,1986.6,2.381]
[1772030829271,7.34891908,1988.1,1986.2,2.897163]
[1772030829272,6.09143661,1987.7,1986.2,2.897163]
[1772030829432,6.09143661,1987.4,1985.6,5.54700404]
[1772030829637,6.09143661,1987.4,1985.8,8.132238]
[1772030829937,2.525,1987.6,1986.1,19.494472]
[1772030830296,12.65544825,1989.0,1986.7,22.830452]
[1772030830297,9.87653923,1988.7,1986.7,22.830452]
[1772030830567,6.09143661,1988.4,1986.9,6.706006]
[1772030830766,7.34879032,1988.4,1987.0,1.25817815]
[1772030830969,7.34879032,1988.4,1986.9,1.25819402]
[1772030831171,7.34879032,1988.4,1987.0,17.582508]
[1772030831341,5.02916918,1988.6,1987.1,4.327346]
[1772030831342,1.25716584,1988.6,1987.1,4.327346]
[1772030831545,0.00893276,1989.0,1987.5,22.830452]
[1772030831757,1.25621828,1990.2,1988.3,6.30609128]
[1772030831941,1.25621828,1990.2,1988.5,7.158705]
[1772030831942,7.34765489,1990.2,1988.5,7.158705]
[1772030832155,2.53937906,1989.2,1987.3,8.70209128]
[1772030832359,8.62843661,1989.2,1987.5,0.08192]
[1772030832560,6.09143661,1989.2,1987.6,4.538671]
[1772030832741,6.09143661,1989.4,1987.6,15.09516495]
[1772030833068,5.717347,1988.7,1987.0,7.056018]
[1772030833273,6.09143661,1988.8,1987.1,0.08192]
[1772030833639,2.54,1989.1,1987.2,3.096]
[1772030833974,2.54,1989.1,1987.5,18.223521]
[1772030834156,2.54,1989.1,1987.5,14.46796]
[1772030834474,2.53937906,1988.7,1987.0,0.08192]
[1772030834768,2.53937906,1988.7,1987.1,5.355282]
[1772030834945,1.25636584,1988.6,1987.1,1.25806392]
[1772030835535,2.53937906,1988.4,1986.8,1.25830481]
[1772030835737,2.53937906,1988.1,1986.2,6.30609128]
[1772030836074,2.53937906,1988.1,1985.3,1.51105101]
[1772030836075,8.63081567,1987.5,1985.7,7.56504695]
[1772030836370,2.28474,1987.3,1985.7,7.56504695]
[1772030836540,2.538,1987.4,1985.8,4.01009]
[1772030836735,3.475,1987.3,1985.7,1.25895567]
[1772030836947,3.79743058,1987.2,1985.7,16.740944]
[1772030837156,11.12364272,1987.3,1985.7,16.740944]
[1772030837157,1.25803203,1987.3,1985.9,2.53937906]
[1772030837378,1.25803203,1987.3,1985.7,0.08192]
[1772030837542,6.09143661,1987.2,1985.7,0.08192]
[1772030837880,1.25803203,1987.3,1985.8,16.30288]
[1772030838171,5.0315286,1987.5,1986.1,17.156699]
[1772030838375,2.53937906,1987.2,1985.6,8.185784]
[1772030838543,8.63081567,1987.2,1985.7,0.08192]
[1772030838738,6.09143661,1987.2,1985.7,2.62129906]
[1772030838970,9.8831084,1987.8,1986.3,2.53937906]
[1772030839270,6.09143661,1987.7,1986.0,0.08192]
[1772030839575,6.09143661,1987.6,1986.0,3.09648]
[1772030839761,6.09143661,1987.6,1986.0,0.08192]
[1772030840170,6.09143661,1987.6,1985.9,1.25887506]
[1772030840667,3.55068857,1987.7,1985.6,3.629999]
[1772030840668,6.09143661,1987.2,1985.6,3.629999]
[1772030840977,6.09143661,1987.2,1985.5,1.25912868]
[1772030840978,7.34955145,1987.1,1985.5,1.25912868]
[1772030841275,8.62343661,1987.0,1985.5,1.25912868]
[1772030841448,6.09143661,1986.9,1985.4,3.34215112]
[1772030841652,6.09143661,1986.8,1985.3,1.2592466]
[1772030841945,2.532,1986.7,1985.3,1.2592466]
[1772030842539,2.532,1986.7,1985.2,5.03806404]
[1772030842540,6.09143661,1986.6,1985.2,1.26030027]
[1772030842940,7.34955145,1987.1,1985.3,26.38114057]
[1772030843146,6.09143661,1986.9,1985.3,0.08192]
[1772030843340,6.09143661,1986.9,1985.4,16.933374]
[1772030843541,6.09143661,1986.9,1985.4,4.835546]
[1772030843744,6.09143661,1986.9,1985.3,14.412394]
[1772030843945,6.09143661,1986.9,1985.3,17.96308257]
[1772030844140,2.531,1987.0,1985.4,22.830452]
[1772030844370,5.03211527,1987.3,1985.5,22.830452]
[1772030844571,6.09143661,1987.4,1985.8,6.38801128]
[1772030844750,10.00831958,1987.9,1986.2,22.830452]
[1772030844957,6.09143661,1987.8,1986.4,7.068493]
[1772030845171,1.25754527,1988.0,1986.4,7.068493]
[1772030845483,3.78750329,1988.1,1986.6,8.761039]
[1772030845685,3.78750329,1988.1,1986.4,22.451532]
[1772030846057,9.99111978,1988.1,1986.4,22.451532]
[1772030846273,9.99111978,1988.1,1986.4,10.592822]
[1772030846974,7.46111978,1988.1,1986.7,0.08192]
[1772030847271,7.46111978,1988.1,1986.6,2.044068]
[1772030848086,0.002,1988.3,1987.0,0.08192]
[1772030848250,6.20361649,1988.8,1987.2,22.569266]
[1772030848450,7.46066545,1988.8,1987.2,5.323]
[1772030848975,7.46066545,1988.8,1987.3,1.25798822]
[1772030849163,6.20361649,1988.5,1986.7,1.25831939]
[1772030849487,5.93898152,1988.1,1986.4,2.385]
[1772030849772,5.93898152,1988.1,1986.4,1.25855105]
[1772030850157,5.93898152,1988.1,1986.5,9.512377]
[1772030850352,5.93898152,1988.1,1986.5,13.06306557]
[1772030850546,8.45998152,1988.1,1986.7,13.690211]
[1772030850750,8.45998152,1988.1,1986.6,16.119609]
[1772030850950,1.25729229,1988.4,1987.0,1.25817815]
[1772030851175,7.19627381,1988.4,1987.1,14.957123]
[1772030851373,7.19627381,1988.4,1987.1,11.479623]
[1772030851583,1.25716647,1988.6,1987.1,8.157989]
[1772030852681,1.25703942,1988.8,1987.1,8.157989]
[1772030852978,1.25703942,1988.8,1987.4,1.25792492]
[1772030853150,1.25703942,1988.8,1987.5,7.533692]
[1772030853851,5.93898152,1989.4,1987.7,3.55068857]
[1772030854087,5.93898152,1989.2,1987.4,1.25792492]
[1772030854400,5.93898152,1989.2,1987.5,5.534697]
[1772030854584,5.93898152,1989.2,1987.5,3.50491]
[1772030854960,7.19583135,1989.1,1987.6,1.25779834]
[1772030855559,5.93898152,1989.1,1987.7,20.039264]
[1772030855757,5.93898152,1989.1,1987.7,5.3357]
[1772030856181,5.93898152,1989.1,1987.7,5.3349]
[1772030856889,5.93898152,1989.5,1987.9,5.084]
[1772030857099,5.93898152,1990.1,1988.2,11.43041371]
[1772030857287,0.002,1989.1,1988.3,5.77115]
[1772030857765,5.93898152,1990.1,1988.5,22.828052]
[1772030857968,2.17823895,1990.3,1988.8,3.55068857]
[1772030858187,2.17823895,1990.3,1988.7,28.85626171]
[1772030858355,2.17823895,1990.3,1988.8,11.84575]
[1772030858556,2.17823895,1990.3,1988.8,17.87395971]
[1772030858755,2.17823895,1990.3,1989.1,6.02820971]
[1772030859062,5.93898152,1991.2,1989.6,14.592205]
[1772030859393,5.93898152,1991.2,1989.6,2.613735]
[1772030859394,2.89198152,1991.2,1989.6,2.613735]
[1772030859579,10.97796152,1990.9,1989.2,1.25678664]
[1772030859783,3.73820211,1991.3,1989.5,22.827252]
[1772030859784,1.25546125,1991.3,1989.5,22.827252]
[1772030860093,0.1570515,1991.5,1990.3,9.02475]
[1772030860094,1.41238739,1991.5,1990.3,9.02475]
[1772030860268,1.41238739,1991.5,1990.1,2.65080982]
[1772030860470,5.93898152,1991.3,1989.7,6.02820971]
[1772030860995,1.41238739,1991.5,1990.3,5.7034]
[1772030861214,1.41238739,1991.5,1990.5,2.8809]
[1772030861491,1.41238739,1991.5,1990.2,3.55068857]
[1772030861492,0.1570515,1991.5,1990.4,8.591]
[1772030861684,0.1570515,1991.5,1990.7,22.827252]
[1772030861989,7.19382484,1992.3,1991.0,3.55068857]
[1772030862197,5.93898152,1992.1,1990.4,12.198344]
[1772030862396,5.93898152,1992.1,1990.5,14.508427]
[1772030862687,1.25484332,1992.3,1990.7,22.827252]
[1772030863005,7.20172989,1992.5,1990.9,3.015]
[1772030863173,5.93898152,1992.1,1990.3,1.25609204]
[1772030863372,5.93898152,1992.1,1990.4,2.093]
[1772030863678,5.93898152,1992.1,1990.5,7.84515]
[1772030863870,1.25483109,1992.3,1990.7,5.620218]
[1772030864067,1.25481482,1992.4,1990.8,6.02820971]
[1772030864294,7.19379634,1992.4,1990.6,2.394]
[1772030864492,5.93898152,1992.4,1991.0,0.08192]
[1772030864701,1.26271647,1992.5,1991.0,2.54]
[1772030864865,0.00799697,1992.5,1991.1,6.02820971]
[1772030865068,1.26272136,1992.5,1991.3,1.25546125]
[1772030865421,5.93898152,1994.8,1992.5,6.02820971]
[1772030865573,5.93898152,1995.5,1993.3,6.02820971]
[1772030865776,5.08559451,1994.9,1992.9,0.40226358]
[1772030866001,13.13480657,1996.0,1992.5,0.26208759]
[1772030866002,4.8108014,1994.3,1992.5,0.26208759]
[1772030866194,30.0,1994.1,1992.5,0.26208759]
[1772030866389,30.0,1993.7,1992.5,0.26208759]
[1772030866583,29.9,1993.7,1992.5,0.26208759]
[1772030866784,3.55068857,1994.5,1993.3,0.1]
[1772030867002,30.0,1994.7,1992.7,6.02820971]
[1772030867198,2.545,1994.8,1993.1,6.02820971]
[1772030867407,6.09568857,1994.8,1993.2,0.38641829]
[1772030867706,2.545,1994.7,1993.0,6.02820971]
[1772030868079,18.370431,1994.6,1993.0,6.02820971]
[1772030868275,3.55068857,1994.3,1992.6,6.02820971]
[1772030868583,4.81825,1994.6,1992.6,6.02820971]
[1772030868785,3.86515,1994.6,1992.7,11.47369371]
[1772030868987,14.16862,1994.6,1992.8,6.02820971]
[1772030869190,30.0,1994.2,1992.5,1.51675702]
[1772030869439,4.49728,1994.2,1992.5,6.2902973]
[1772030869613,1.25288162,1995.4,1993.2,6.02820971]
[1772030869780,3.55068857,1995.1,1993.2,6.02820971]
[1772030870109,8.36148997,1994.3,1992.5,0.26208759]
[1772030870314,2.20015,1994.1,1992.5,1.51678958]
[1772030870519,2.186,1994.0,1992.5,1.51677739]
[1772030870689,5.411,1993.9,1992.5,0.26208759]
[1772030870887,3.2511,1993.9,1992.5,0.26208759]
[1772030871090,22.388228,1993.7,1992.5,0.26208759]
[1772030871288,25.93891657,1993.7,1992.5,0.26208759]
[1772030871496,7.889548,1993.6,1991.9,6.02820971]
[1772030871699,2.542,1993.5,1991.7,2.65080982]
[1772030872002,3.73754481,1993.3,1991.5,1.25533517]
[1772030872203,3.73754481,1993.3,1991.4,7.28356778]
[1772030872204,4.42779996,1993.1,1991.4,7.28356778]
[1772030872425,4.42779996,1993.1,1990.4,3.91020192]
[1772030872426,25.21599,1992.8,1990.4,3.91020192]
[1772030872714,5.60633,1992.8,1990.9,6.02820971]
[1772030872928,4.42779996,1993.1,1991.5,6.02820971]
[1772030873206,4.42779996,1993.1,1991.6,7.28348185]
[1772030873406,2.543,1993.0,1991.6,7.28348185]
[1772030873793,2.543,1993.0,1991.6,6.02820971]
[1772030874123,20.692102,1992.8,1991.4,1.25536496]
[1772030874277,20.692102,1992.8,1991.1,7.28376384]
[1772030874278,13.80181,1992.8,1991.1,7.28376384]
[1772030874485,2.542,1992.7,1991.1,7.28376384]
[1772030875089,1.25470514,1992.5,1991.1,7.28376384]
[1772030875709,5.34,1992.4,1991.1,7.28376384]
[1772030875909,1.25470514,1992.5,1991.1,7.28376384]
[1772030876112,20.887161,1992.4,1990.8,3.90654887]
[1772030876416,15.40498,1992.1,1990.6,7.16321218]
[1772030876709,2.54,1992.0,1990.6,7.16321218]
[1772030876917,3.55068857,1991.8,1990.2,5.02453727]
[1772030877080,1.25527214,1991.6,1990.1,11.50348092]
[1772030877280,0.18685624,1991.5,1990.1,4.33993993]
[1772030877477,30.0,1991.3,1990.1,4.33993993]
[1772030877681,4.42779996,1991.1,1990.1,5.59615745]
[1772030877907,4.42779996,1991.1,1990.1,4.33993993]
[1772030878229,3.55068857,1990.7,1989.2,6.26456926]
[1772030878580,10.59606,1990.6,1989.2,6.26456926]
[1772030878808,2.541,1990.5,1989.2,6.26456926]
[1772030879121,2.541,1990.5,1988.9,6.26456926]
[1772030879122,1.25609204,1990.3,1988.9,6.26456926]
[1772030879408,4.28874999,1990.8,1989.7,6.26456926]
[1772030879797,15.207437,1990.7,1989.0,6.26456926]
[1772030879988,2.54,1990.6,1989.0,6.26456926]
[1772030880193,4.42779996,1990.5,1989.0,6.26456926]
[1772030880937,23.685344,1990.3,1989.0,6.26456926]
[1772030881120,22.912579,1990.2,1988.6,5.02815768]
[1772030881327,22.912579,1990.2,1988.0,1.50896141]
[1772030881328,24.328179,1989.9,1988.3,5.90734762]
[1772030881663,2.24186147,1989.8,1988.0,5.0296754]
[1772030881818,9.84351,1989.7,1988.0,10.93702302]
[1772030882018,2.16102,1990.1,1988.3,8.645656]
[1772030882281,2.541,1989.6,1988.4,5.90734762]
[1772030882416,2.541,1989.6,1988.0,5.0296754]
[1772030882761,0.18685624,1989.4,1987.6,1.25873507]
[1772030882939,0.18685624,1989.4,1987.7,5.03071667]
[1772030883145,6.712194,1989.1,1987.6,0.001]
[1772030883455,2.54,1989.1,1987.6,5.90834762]
[1772030883949,3.55068857,1988.9,1987.6,5.90834762]
[1772030884148,0.18685624,1988.8,1987.6,0.001]
[1772030884472,2.450826,1988.8,1987.6,0.001]
[1772030884636,4.42779996,1989.0,1987.6,0.001]
[1772030884637,2.542,1988.7,1987.6,0.001]
[1772030885017,4.42779996,1989.0,1987.6,5.90834762]
[1772030885215,5.68472273,1989.0,1987.9,1.25760853]
[1772030885411,5.68472273,1989.0,1987.6,0.001]
[1772030885647,5.68472466,1989.0,1987.7,7.16506804]
[1772030885818,5.68472466,1989.0,1987.7,7.16606804]
[1772030886140,4.42779996,1989.0,1987.7,7.16606804]
[1772030886340,5.6847166,1989.0,1987.9,5.90734762]
[1772030886544,4.42779996,1989.0,1988.1,5.90734762]
[1772030886751,5.68471584,1989.0,1987.8,3.5275]
[1772030886929,5.68471584,1989.0,1987.7,1.25872042]
[1772030887243,5.68471578,1989.0,1987.9,5.90734762]
[1772030887550,5.68471348,1989.0,1987.9,5.90734762]
[1772030887848,5.68471348,1989.0,1987.7,1.25872042]
[1772030888542,2.267813,1988.9,1987.7,0.001]
[1772030888948,6.47845707,1988.8,1987.6,0.001]
[1772030889247,1.25722906,1988.5,1987.6,0.001]
[1772030889449,2.539,1988.4,1987.6,0.001]
[1772030889974,0.18685624,1988.3,1987.6,0.001]
[1772030890169,12.889426,1988.3,1987.6,0.001]
[1772030890333,2.54,1988.2,1987.6,0.001]
[1772030890725,2.54,1988.2,1986.9,7.16555568]
[1772030891330,1.25748201,1988.1,1986.9,1.25820806]
[1772030892844,4.42779996,1988.0,1986.5,5.03397751]
[1772030893038,4.42779996,1988.0,1986.5,10.94132513]
[1772030893226,1.25760853,1987.9,1986.5,10.94132513]
[1772030893744,1.25760853,1987.9,1986.5,7.16584246]
[1772030893950,1.25760853,1987.9,1986.4,1.25854003]
[1772030894133,2.535,1987.8,1986.4,1.25854003]
[1772030894721,7.337267,1987.8,1986.4,1.25854003]
[1772030894941,2.534,1987.7,1986.4,7.16588765]
[1772030895463,2.532,1987.9,1986.6,5.90734762]
[1772030895858,4.42779996,1987.8,1986.6,5.90734762]
[1772030896377,4.42779996,1987.8,1986.4,1.25854003]
[1772030896865,4.42779996,1987.8,1986.6,5.90734762]
[1772030897049,4.42779996,1987.8,1986.8,5.90734762]
[1772030897233,4.42779996,1987.8,1986.9,7.1655891]
[1772030898147,4.42779996,1987.8,1986.4,7.16590581]
[1772030898465,5.68549037,1987.8,1986.5,12.346168]
[1772030898762,5.68549037,1987.8,1986.5,5.90734762]
[1772030898929,2.527,1987.7,1986.5,5.90734762]
[1772030899334,1.25779834,1987.6,1986.6,1.25843149]
[1772030899531,1.25779834,1987.6,1986.5,7.16582608]
[1772030900440,7.55468556,1988.2,1986.7,5.90834762]
[1772030900949,7.55468556,1988.2,1986.9,5.90734762]
[1772030901254,2.53562878,1988.1,1986.9,5.90734762]
[1772030901455,1.25754527,1988.0,1986.7,1.25936814]
[1772030901780,1.25754527,1988.0,1986.7,7.16671576]
[1772030902572,30.0,1987.9,1986.7,0.001]
[1772030902753,1.25754527,1988.0,1986.7,0.001]
[1772030903071,1.25754527,1988.0,1986.7,5.90834762]
[1772030903761,1.25754527,1988.0,1986.7,7.16670437]
[1772030904067,2.53562878,1987.4,1986.7,0.001]
[1772030904235,4.42779996,1987.2,1986.5,0.001]
[1772030904440,4.42779996,1987.2,1986.5,1.25949071]
[1772030904648,3.41877893,1987.2,1986.5,7.16683833]
[1772030905065,3.41877893,1987.2,1986.5,5.90834762]
[1772030905365,1.25811484,1987.1,1986.5,5.90834762]
[1772030905536,1.25811484,1987.1,1986.5,0.001]
[1772030905961,4.67687635,1987.2,1986.5,1.25948032]
[1772030906332,4.67687635,1987.2,1986.5,1.25946434]
[1772030906544,3.41877893,1987.2,1986.5,1.25946434]
[1772030906740,3.41877893,1987.2,1986.5,7.5564141]
[1772030908191,5.03069114,1987.8,1986.7,6.29694976]
[1772030909874,5.03069114,1987.8,1986.7,7.55531704]
[1772030910073,5.03069114,1987.8,1986.7,7.55531581]
[1772030911187,1.25754527,1988.0,1986.8,6.54697747]
[1772030911489,1.25754527,1988.0,1987.1,7.34617639]
[1772030911656,1.25754527,1988.0,1987.1,6.08806155]
[1772030912775,3.7675046,1988.1,1987.1,6.08806155]
[1772030913284,3.7675046,1988.1,1986.9,3.62823109]
[1772030913467,1.2575046,1988.1,1987.0,6.08806155]
[1772030913656,1.25735552,1988.4,1987.2,6.08806155]
[1772030913983,5.03044003,1988.7,1987.1,1.25811484]
[1772030913984,0.002,1988.7,1987.5,6.08806155]
[1772030914183,0.002,1988.7,1987.8,6.08806155]
[1772030914530,1.25910494,1988.7,1987.8,6.08806155]
[1772030914656,0.002,1988.7,1987.8,6.08806155]
[1772030915293,7.53217938,1989.2,1988.1,6.08806155]
[1772030915294,2.505,1989.2,1988.1,6.08806155]
[1772030915488,1.25958365,1989.6,1988.4,6.08806155]
[1772030915696,1.25958365,1989.6,1988.6,7.34522739]
[1772030915987,0.003,1989.6,1988.7,6.08806155]
[1772030916373,0.003,1989.6,1988.8,6.08806155]
[1772030916577,9.51812888,1990.8,1989.3,8.62369033]
[1772030916760,1.25583965,1990.7,1989.5,6.08806155]
[1772030917568,8.0562469,1990.8,1990.0,6.08806155]
[1772030917569,3.03292837,1990.8,1990.0,6.08806155]
[1772030917858,3.03292837,1990.8,1990.3,6.08806155]
[1772030918511,4.28870664,1990.8,1989.8,6.08806155]
[1772030918711,4.28870664,1990.8,1990.0,6.08806155]
[1772030918712,3.03292837,1990.8,1990.0,6.08806155]
[1772030918910,4.60985395,1992.2,1990.4,6.08806155]
[1772030918911,8.05362878,1992.2,1990.4,6.08806155]
[1772030919216,2.53562878,1991.9,1990.4,6.08806155]
[1772030919388,2.53562878,1991.6,1990.4,6.08806155]
[1772030919596,1.25539821,1991.4,1990.1,3.61921163]
[1772030919795,2.53562878,1991.3,1990.0,1.25624183]
[1772030919994,2.53562878,1991.3,1989.9,7.34439912]
[1772030920210,1.25539821,1991.4,1989.9,7.34439912]
[1772030920787,1.25539821,1991.4,1990.2,6.08806155]
[1772030921316,14.93721,1991.3,1989.9,1.25633757]
[1772030921513,2.53562878,1991.3,1989.9,1.25633757]
[1772030921697,1.25558736,1991.1,1989.9,1.25633757]
[1772030921892,1.25558736,1991.1,1989.8,9.70642367]
[1772030922094,1.25558736,1991.1,1989.8,8.45006155]
[1772030922299,2.53562878,1990.7,1989.1,6.08806155]
[1772030922486,7.4038,1990.5,1989.1,6.08806155]
[1772030922687,4.244,1990.5,1989.1,6.08806155]
[1772030922908,20.025763,1990.3,1989.0,2.359]
[1772030923103,6.669584,1990.3,1989.0,2.359]
[1772030923296,5.324199,1990.5,1989.0,2.359]
[1772030923591,8.97720051,1990.6,1988.7,1.25710262]
[1772030923592,1.25615516,1990.2,1988.7,1.25710262]
[1772030923927,1.25615516,1990.2,1988.6,12.62647206]
[1772030923928,10.768887,1990.0,1988.6,7.34518278]
[1772030924224,7.94462878,1989.8,1988.5,3.61516968]
[1772030924551,6.225709,1989.7,1988.3,1.25735552]
[1772030924688,2.153737,1990.1,1988.7,6.08806155]
[1772030924885,1.25615516,1990.2,1989.0,6.08806155]
[1772030925121,5.02436818,1990.4,1989.0,6.08806155]
[1772030926209,6.48520051,1991.7,1989.7,6.08806155]
[1772030926412,6.48520051,1991.7,1989.3,22.927252]
[1772030926413,1.25527214,1991.6,1990.0,6.08806155]
[1772030927112,3.74927214,1991.6,1990.0,6.08806155]
[1772030927301,3.396146,1991.1,1989.4,6.08806155]
[1772030927618,2.53562878,1990.9,1989.4,6.08806155]
[1772030927917,2.493,1990.8,1989.4,6.08806155]
[1772030928217,1.25590274,1990.6,1989.5,1.25659713]
[1772030928520,1.25590274,1990.6,1989.5,7.34465868]
[1772030929087,7.51661097,1990.8,1989.5,7.34465868]
[1772030929088,3.74881355,1990.8,1989.5,7.34465868]
[1772030929317,1.25581355,1990.8,1989.5,7.34465868]
[1772030929797,1.25581355,1990.8,1989.7,6.08806155]
[1772030930187,2.53562878,1991.2,1989.8,7.34446922]